bitfinex-derivatives/quotes_BTCF0:USTF0_20250728
["timestamp","ask_amount","ask_price","bid_price","bid_amount"]
[1753703711143,1.30919312,118940.0,118930.0,0.33334031]
[1753703711334,1.2334687,118940.0,118930.0,0.33334031]
[1753703711734,1.2334687,118940.0,118930.0,0.21505261]
[1753703711939,1.33945777,118940.0,118930.0,0.24617261]
[1753703712139,1.41521422,118940.0,118930.0,0.24617261]
[1753703712341,1.30922515,118940.0,118930.0,0.24617261]
[1753703713350,1.29407356,118940.0,118930.0,0.24617261]
[1753703713748,1.29407356,118940.0,118930.0,0.24962261]
[1753703716350,1.29407356,118940.0,118930.0,0.20008261]
[1753703717047,1.29407356,118940.0,118930.0,0.20596261]
[1753703719750,1.29407356,118940.0,118930.0,0.20044261]
[1753703720049,1.2334687,118940.0,118930.0,0.20044261]
[1753703720856,1.2334687,118940.0,118930.0,0.08790261]
[1753703721046,1.2334687,118940.0,118930.0,0.08445261]
[1753703721951,1.2334687,118940.0,118930.0,0.12949261]
[1753703722453,1.2334687,118940.0,118930.0,0.08790261]
[1753703724154,0.98122265,118940.0,118930.0,0.16079261]
[1753703724347,0.83676293,118940.0,118930.0,0.41652866]
[1753703724546,1.04230938,118940.0,118930.0,0.24001261]
[1753703724746,1.04230938,118940.0,118930.0,0.3237189]
[1753703725453,0.96655293,118940.0,118930.0,0.3237189]
[1753703729155,1.04230938,118940.0,118930.0,0.3237189]
[1753703732053,1.04230938,118940.0,118930.0,0.2889089]
[1753703732254,0.96655293,118940.0,118930.0,0.2889089]
[1753703732657,0.96655293,118940.0,118930.0,0.26870354]
[1753703734858,1.04230938,118940.0,118930.0,0.26870354]
[1753703736352,0.79006333,118940.0,118930.0,0.26870354]
[1753703736557,0.53781728,118940.0,118930.0,0.26870354]
[1753703736757,1.04230938,118940.0,118930.0,0.26870354]
[1753703739259,1.04230938,118940.0,118930.0,0.23585663]
[1753703739461,1.21879898,118940.0,118930.0,0.19273663]
[1753703740268,1.21879898,118940.0,118930.0,0.1681589]
[1753703741661,1.88755898,118940.0,118930.0,0.1681589]
[1753703742961,1.94814916,118940.0,118930.0,0.1681589]
[1753703743563,1.88755898,118940.0,118930.0,0.1681589]
[1753703748767,1.94814916,118940.0,118930.0,0.1681589]
[1753703750066,1.88755898,118940.0,118930.0,0.1681589]
[1753703750771,1.21979898,118940.0,118930.0,0.1681589]
[1753703750974,1.88751898,118940.0,118930.0,0.1681589]
[1753703751971,1.94810916,118940.0,118930.0,0.1681589]
[1753703752368,0.2857189,118930.0,118920.0,0.962048]
[1753703752569,1.02746577,118930.0,118920.0,0.962638]
[1753703752770,1.02746577,118930.0,118920.0,0.962048]
[1753703752975,1.0287819,118930.0,118920.0,0.962048]
[1753703753874,1.0287819,118930.0,118920.0,0.962638]
[1753703754172,1.0287819,118930.0,118920.0,1.001778]
[1753703754974,1.0287819,118930.0,118920.0,1.002778]
[1753703759289,0.96818713,118930.0,118920.0,1.002778]
[1753703761989,0.96818713,118930.0,118920.0,1.02733703]
[1753703763489,0.96822713,118930.0,118920.0,1.02733703]
[1753703768901,0.96822713,118930.0,118920.0,1.0273415]
[1753703775302,0.96822713,118930.0,118920.0,1.002778]
[1753703776103,0.96822713,118930.0,118920.0,1.02736136]
[1753703776303,0.96822713,118930.0,118920.0,1.002778]
[1753703776803,0.96822713,118930.0,118920.0,1.02736151]
[1753703777203,0.96822713,118930.0,118920.0,1.002778]
[1753703777902,0.96822713,118930.0,118920.0,1.02736172]
[1753703781507,0.96822713,118930.0,118920.0,0.35960172]
[1753703781709,0.96822713,118930.0,118920.0,1.02712172]
[1753703782414,0.96822713,118930.0,118920.0,0.98798172]
[1753703782804,1.22047318,118930.0,118920.0,0.19375682]
[1753703783004,1.22047318,118930.0,118920.0,0.8366931]
[1753703783201,1.0288219,118930.0,118920.0,0.8366931]
[1753703783406,0.96822713,118930.0,118920.0,0.8366931]
[1753703784009,0.96822713,118930.0,118920.0,0.1691731]
[1753703784204,0.96822713,118930.0,118920.0,0.8366931]
[1753703785311,0.96822713,118930.0,118920.0,0.9374131]
[1753703786409,1.0288219,118930.0,118920.0,0.9374131]
[1753703786909,0.96822713,118930.0,118920.0,0.9374131]
[1753703787213,1.0288219,118930.0,118920.0,0.9374131]
[1753703789007,1.028822,118930.0,118920.0,0.9374131]
[1753703789212,1.028822,118930.0,118920.0,0.9520231]
[1753703789511,1.028822,118930.0,118920.0,0.93181704]
[1753703790211,0.96822723,118930.0,118920.0,0.93181704]
[1753703791110,0.96822723,118930.0,118920.0,0.91720704]
[1753703791512,0.54782218,118930.0,118920.0,0.91720704]
[1753703791703,0.06195138,118930.0,118920.0,0.51654309]
[1753703791907,0.04677613,118930.0,118920.0,1.46120435]
[1753703792109,0.35961743,118930.0,118920.0,1.18466309]
[1753703795012,0.35961743,118930.0,118920.0,0.93241704]
[1753703795213,0.35961743,118930.0,118920.0,1.18466309]
[1753703795713,0.35961743,118930.0,118920.0,1.18470309]
[1753703799526,0.35961743,118930.0,118920.0,0.93245704]
[1753703799716,0.35961743,118930.0,118920.0,1.18470309]
[1753703800516,0.35961743,118930.0,118920.0,1.43694914]
[1753703800721,0.10737138,118930.0,118920.0,1.18470309]
[1753703802018,0.04677613,118930.0,118920.0,1.18470309]
[1753703802220,0.29902218,118930.0,118920.0,1.18470309]
[1753703807221,0.00135613,118930.0,118920.0,1.43694914]
[1753703809333,0.25360218,118930.0,118920.0,1.18470309]
[1753703809530,0.29902218,118930.0,118920.0,1.18470309]
[1753703809833,0.29902218,118930.0,118920.0,1.43694914]
[1753703810329,0.04677613,118930.0,118920.0,1.43694914]
[1753703812127,0.04677613,118930.0,118920.0,1.4612146]
[1753703814433,0.29902218,118930.0,118920.0,1.4612146]
[1753703815334,0.29902218,118930.0,118920.0,0.9567225]
[1753703815534,0.48263218,118930.0,118920.0,0.9567225]
[1753703815734,0.23038613,118930.0,118920.0,1.20896855]
[1753703815934,0.48263218,118930.0,118920.0,1.20896855]
[1753703817238,0.54054218,118930.0,118920.0,1.20896855]
[1753703837358,0.54054218,118930.0,118920.0,1.4612146]
[1753703837755,0.28829613,118930.0,118920.0,1.4612146]
[1753703837957,0.54054218,118930.0,118920.0,1.4612146]
[1753703838657,0.54054218,118930.0,118920.0,1.20896855]
[1753703840260,0.54054218,118930.0,118920.0,1.4612146]
[1753703840959,0.54054218,118930.0,118920.0,1.20896855]
[1753703842060,0.60113743,118930.0,118920.0,1.18470309]
[1753703842762,0.34889138,118930.0,118920.0,1.43694914]
[1753703842965,0.60113743,118930.0,118920.0,1.18470309]
[1753703843262,0.60113743,118930.0,118920.0,1.43694914]
[1753703844362,0.60113743,118930.0,118920.0,1.18470309]
[1753703844563,0.31419743,118930.0,118920.0,1.43694914]
[1753703844758,0.36179743,118930.0,118920.0,1.43694914]
[1753703845263,0.10955138,118930.0,118920.0,1.43694914]
[1753703845462,0.36179743,118930.0,118920.0,1.43694914]
[1753703846761,0.10955138,118930.0,118920.0,1.43694914]
[1753703846958,0.36179743,118930.0,118920.0,1.43694914]
[1753703847159,0.00566968,118930.0,118920.0,1.68919519]
[1753703847362,0.16347,118940.0,118930.0,0.278029]
[1753703847562,0.0476,118940.0,118930.0,0.7825211]
[1753703848170,0.11581,118940.0,118930.0,0.7825211]
[1753703848857,0.11681,118940.0,118930.0,0.7825211]
[1753703850169,0.066252,118940.0,118930.0,0.7825211]
[1753703850368,0.24918645,118960.0,118950.0,0.3190907]
[1753703850568,0.24918645,118960.0,118950.0,1.19484514]
[1753703851468,0.17343,118960.0,118950.0,1.44709119]
[1753703851678,0.17543,118960.0,118950.0,1.19484514]
[1753703851974,0.17843,118960.0,118950.0,1.19484514]
[1753703852272,0.29424,118960.0,118950.0,1.21900614]
[1753703855273,0.29124,118960.0,118950.0,1.21900614]
[1753703855475,0.29224,118960.0,118950.0,1.21900614]
[1753703855675,0.003,118960.0,118950.0,1.21900614]
[1753703856573,0.0506,118960.0,118950.0,1.21900614]
[1753703857077,0.0496,118960.0,118950.0,1.21900614]
[1753703857272,0.0496,118960.0,118950.0,1.19484514]
[1753703858174,0.002,118960.0,118950.0,1.47140006]
[1753703858763,0.066572,118970.0,118960.0,0.3190766]
[1753703858968,0.066572,118970.0,118960.0,0.8235687]
[1753703859375,0.114172,118970.0,118960.0,0.8235687]
[1753703859674,0.114172,118970.0,118960.0,0.83217451]
[1753703860680,0.116172,118970.0,118960.0,0.83217451]
[1753703861178,0.116172,118970.0,118960.0,0.8235687]
[1753703861379,0.51956805,118970.0,118960.0,0.8235687]
[1753703861573,0.57912805,118970.0,118960.0,0.8235687]
[1753703861878,0.61205805,118970.0,118960.0,0.8235687]
[1753703862470,0.359812,118970.0,118960.0,0.8235687]
[1753703863074,0.61205805,118970.0,118960.0,0.8235687]
[1753703863273,0.61205805,118970.0,118960.0,0.83211604]
[1753703863881,0.61205805,118970.0,118960.0,0.8235687]
[1753703864973,0.61205805,118970.0,118960.0,0.57132265]
[1753703865275,0.61205805,118970.0,118960.0,1.24044265]
[1753703867568,0.61005805,118970.0,118960.0,1.24044265]
[1753703868585,0.60805805,118970.0,118960.0,1.24044265]
[1753703874890,0.355812,118970.0,118960.0,1.24044265]
[1753703875086,0.60805805,118970.0,118960.0,1.4926887]
[1753703876384,0.60805805,118970.0,118960.0,1.26544941]
[1753703877391,0.60805805,118970.0,118960.0,1.26535643]
[1753703878688,0.60805805,118970.0,118960.0,1.51760248]
[1753703879390,0.355812,118970.0,118960.0,1.51760248]
[1753703879587,0.60805805,118970.0,118960.0,1.51760248]
[1753703880489,0.355812,118970.0,118960.0,1.51760248]
[1753703880689,0.60805805,118970.0,118960.0,1.51760248]
[1753703881594,0.355812,118970.0,118960.0,1.51760248]
[1753703881995,0.60805805,118970.0,118960.0,1.51760248]
[1753703882195,0.355812,118970.0,118960.0,1.4926887]
[1753703882997,0.298252,118970.0,118960.0,1.4926887]
[1753703883599,0.298252,118970.0,118960.0,1.4936887]
[1753703884592,0.358132,118970.0,118960.0,1.4936887]
[1753703886498,0.358132,118970.0,118960.0,1.4946887]
[1753703887500,0.61037805,118970.0,118960.0,1.4946887]
[1753703887794,0.67080611,118970.0,118960.0,1.4946887]
[1753703888498,0.67080611,118970.0,118960.0,1.24244265]
[1753703888700,0.67080611,118970.0,118960.0,1.4946887]
[1753703889289,0.61037805,118970.0,118960.0,1.4946887]
[1753703889800,0.358132,118970.0,118960.0,1.4946887]
[1753703890001,0.61037805,118970.0,118960.0,1.4946887]
[1753703890501,0.358132,118970.0,118960.0,1.4946887]
[1753703890705,0.61037805,118970.0,118960.0,1.5194044]
[1753703892907,0.358132,118970.0,118960.0,1.5194044]
[1753703893106,0.61037805,118970.0,118960.0,1.5194044]
[1753703893706,0.61037805,118970.0,118960.0,1.26715835]
[1753703894007,0.61037805,118970.0,118960.0,1.5194044]
[1753703895902,0.61037805,118970.0,118960.0,0.2999423]
[1753703896102,0.8626241,118970.0,118960.0,0.1948323]
[1753703896304,0.8626241,118970.0,118960.0,0.8629923]
[1753703897203,0.8626241,118970.0,118960.0,0.1948323]
[1753703897404,0.8626241,118970.0,118960.0,0.8629969]
[1753703897600,1.0307266,118970.0,118960.0,0.1948369]
[1753703897910,1.09115466,118970.0,118960.0,0.8382366]
[1753703898416,0.92305216,118970.0,118960.0,0.8382366]
[1753703898611,1.09115456,118970.0,118960.0,0.8382366]
[1753703899216,0.92305216,118970.0,118960.0,0.8381566]
[1753703900415,0.8626241,118970.0,118960.0,0.8381566]
[1753703900917,1.0307265,118970.0,118960.0,0.8381566]
[1753703901903,1.09115456,118970.0,118960.0,0.8381566]
[1753703902312,1.0307265,118970.0,118960.0,0.8381566]
[1753703902713,1.09115456,118970.0,118960.0,0.8381566]
[1753703910620,1.09115456,118970.0,118960.0,0.8708566]
[1753703911321,1.09115456,118970.0,118960.0,0.9018166]
[1753703911521,1.09115456,118970.0,118960.0,0.9404566]
[1753703912122,0.83890851,118970.0,118960.0,0.9404566]
[1753703912421,1.09115456,118970.0,118960.0,0.9886266]
[1753703912616,0.83890851,118970.0,118960.0,0.9886266]
[1753703914021,1.09115456,118970.0,118960.0,0.9886266]
[1753703916927,1.0307265,118970.0,118960.0,0.9886266]
[1753703922134,1.09115456,118970.0,118960.0,0.9886266]
[1753703922342,1.09115456,118970.0,118960.0,0.96842708]
[1753703924145,1.0307265,118970.0,118960.0,0.96842708]
[1753703925549,1.0307265,118970.0,118960.0,0.92025708]
[1753703926540,1.09115456,118970.0,118960.0,0.92025708]
[1753703929345,1.0307265,118970.0,118960.0,0.92025708]
[1753703929745,1.09128907,118970.0,118960.0,0.92025708]
[1753703931151,1.0307265,118970.0,118960.0,0.92025708]
[1753703931848,1.0307265,118970.0,118960.0,0.96745708]
[1753703932150,1.10620962,118970.0,118960.0,0.92200796]
[1753703934353,1.0307265,118970.0,118960.0,0.92200796]
[1753703934552,1.10644834,118970.0,118960.0,0.92200796]
[1753703935050,1.0307265,118970.0,118960.0,0.87480796]
[1753703935254,1.1064485,118970.0,118960.0,0.87480796]
[1753703936256,1.1064485,118970.0,118960.0,0.92200796]
[1753703936958,1.0307265,118970.0,118960.0,0.92200796]
[1753703940156,1.0307265,118970.0,118960.0,0.81754]
[1753703940360,1.13671557,118970.0,118960.0,0.96745675]
[1753703941859,1.0307265,118970.0,118960.0,0.96745675]
[1753703942054,1.10645012,118970.0,118960.0,0.96745675]
[1753703944160,1.0307265,118970.0,118960.0,0.96745675]
[1753703946566,1.0913059,118970.0,118960.0,0.96745675]
[1753703955663,1.0307265,118970.0,118960.0,0.96745675]
[1753703956372,1.09131743,118970.0,118960.0,0.96745675]
[1753703956770,0.83907138,118970.0,118960.0,1.2197028]
[1753703957072,0.67096898,118970.0,118960.0,1.2197028]
[1753703957573,0.67096898,118970.0,118960.0,0.96745675]
[1753703958273,0.67096898,118970.0,118960.0,1.2197028]
[1753703958574,0.67096898,118970.0,118960.0,0.96745675]
[1753703959076,0.67096898,118970.0,118960.0,1.2197028]
[1753703959275,0.67096898,118970.0,118960.0,0.96745675]
[1753703959769,0.83907138,118970.0,118960.0,0.96745675]
[1753703960374,0.54751138,118970.0,118960.0,1.2197028]
[1753703960574,0.59310138,118970.0,118960.0,1.2197028]
[1753703960873,0.82306138,118970.0,118960.0,1.2197028]
[1753703961072,0.65495898,118970.0,118960.0,1.2197028]
[1753703961469,0.59436805,118970.0,118960.0,1.2197028]
[1753703961671,0.59436805,118970.0,118960.0,0.96745675]
[1753703963168,0.76247045,118970.0,118960.0,0.96745675]
[1753703963774,0.59436805,118970.0,118960.0,0.96745675]
[1753703966786,0.59436805,118970.0,118960.0,1.2197028]
[1753703968485,0.47492805,118970.0,118960.0,1.2197028]
[1753703968687,0.31881805,118970.0,118960.0,1.2197028]
[1753703968891,0.36861805,118970.0,118960.0,1.2440349]
[1753703969096,0.59850805,118970.0,118960.0,1.2440349]
[1753703969501,0.59850805,118970.0,118960.0,0.99178885]
[1753703969795,0.59850805,118970.0,118960.0,1.2440349]
[1753703972096,0.59850805,118970.0,118960.0,0.99178885]
[1753703973002,0.59850805,118970.0,118960.0,1.2440349]
[1753703973201,0.59850805,118970.0,118960.0,0.99178885]
[1753703973897,0.65909898,118970.0,118960.0,0.96745675]
[1753703975101,0.65909898,118970.0,118960.0,1.2197028]
[1753703975293,0.12716293,118970.0,118960.0,1.47194885]
[1753703975491,0.066572,118970.0,118960.0,1.47194885]
[1753703975895,0.31881805,118970.0,118960.0,1.48034644]
[1753703976198,0.066572,118970.0,118960.0,1.48034644]
[1753703976399,0.12716293,118970.0,118960.0,1.48034644]
[1753703976599,0.06063093,118970.0,118960.0,1.48034644]
[1753703977107,0.03324768,118970.0,118960.0,1.48034644]
[1753703977405,8e-08,118970.0,118960.0,1.48034644]
[1753703978505,0.06772606,118970.0,118960.0,1.48034644]
[1753703978700,0.31997211,118970.0,118960.0,1.48034644]
[1753703979106,0.31997211,118970.0,118960.0,1.22810039]
[1753703979306,0.31997211,118970.0,118960.0,1.22792569]
[1753703980302,0.43084211,118970.0,118960.0,0.3176166]
[1753703980508,0.59966211,118970.0,118960.0,0.9850966]
[1753703981103,0.59966211,118970.0,118960.0,1.23734265]
[1753703981298,0.59966203,118970.0,118960.0,1.23734265]
[1753703981503,0.59966203,118970.0,118960.0,0.56986265]
[1753703981808,0.59966203,118970.0,118960.0,0.9850966]
[1753703982004,0.59966203,118970.0,118960.0,1.23734265]
[1753703984603,0.85190808,118970.0,118960.0,0.9344866]
[1753703984809,1.02001048,118970.0,118960.0,0.9813666]
[1753703985109,0.76776443,118970.0,118960.0,0.9813666]
[1753703985611,0.59966203,118970.0,118960.0,0.3139266]
[1753703985810,0.59966203,118970.0,118960.0,0.9813666]
[1753703985999,0.76776443,118970.0,118960.0,0.3139266]
[1753703986203,1.02001048,118970.0,118960.0,0.9344866]
[1753703986508,1.02001048,118970.0,118960.0,0.9813666]
[1753703986910,1.02001048,118970.0,118960.0,0.9344466]
[1753703987611,1.02001048,118970.0,118960.0,0.9813266]
[1753703988717,1.08051549,118970.0,118960.0,0.9813266]
[1753703989016,1.02001048,118970.0,118960.0,0.9813266]
[1753703989416,1.08051549,118970.0,118960.0,0.9813266]
[1753703989913,1.08051549,118970.0,118960.0,0.9855266]
[1753703990315,0.82826944,118970.0,118960.0,0.9855266]
[1753703990511,0.40792099,118970.0,118960.0,0.9855266]
[1753703990712,0.28890099,118970.0,118960.0,1.23777265]
[1753703991011,0.66016704,118970.0,118960.0,1.23777265]
[1753703992112,0.59966203,118970.0,118960.0,1.23777265]
[1753703994018,0.59966203,118970.0,118960.0,0.57037265]
[1753703994318,0.59966203,118970.0,118960.0,1.23777265]
[1753703994824,0.59966203,118970.0,118960.0,1.26233536]
[1753703995007,0.59966203,118970.0,118960.0,1.23777265]
[1753703999025,0.59966203,118970.0,118960.0,0.57037265]
[1753703999220,0.59966203,118970.0,118960.0,1.23773265]
[1753703999522,0.59966203,118970.0,118960.0,0.9854866]
[1753703999723,0.59966203,118970.0,118960.0,1.23773265]
[1753704000222,0.31997203,118970.0,118960.0,1.4899787]
[1753704000717,0.06772598,118970.0,118960.0,1.4899787]
[1753704000912,0.55440106,118980.0,118970.0,0.3156624]
[1753704001113,0.80664711,118980.0,118970.0,0.56790845]
[1753704001515,0.92289059,118980.0,118970.0,0.56790845]
[1753704001719,0.67064454,118980.0,118970.0,0.56790845]
[1753704002025,0.67064454,118980.0,118970.0,0.3156624]
[1753704002222,0.67064454,118980.0,118970.0,0.56790845]
[1753704002423,0.67164454,118980.0,118970.0,0.56790845]
[1753704002726,0.92389059,118980.0,118970.0,0.3156624]
[1753704002927,0.92389059,118980.0,118970.0,0.56790845]
[1753704003130,0.67164454,118980.0,118970.0,0.56790845]
[1753704003621,0.49352454,118980.0,118970.0,0.56790845]
[1753704003815,0.41939849,118980.0,118970.0,0.56790845]
[1753704004020,0.67164454,118980.0,118970.0,0.56790845]
[1753704004926,0.67164454,118980.0,118970.0,0.56890845]
[1753704005125,0.29943348,118980.0,118970.0,0.56890845]
[1753704005523,0.12869849,118980.0,118970.0,0.56890845]
[1753704005927,0.06719348,118980.0,118970.0,0.56890845]
[1753704008336,0.06719348,118980.0,118970.0,0.8211545]
[1753704008525,0.06719348,118980.0,118970.0,0.56890845]
[1753704009324,0.06719348,118980.0,118970.0,0.59363072]
[1753704009528,0.06050501,119000.0,118970.0,0.88982687]
[1753704009733,0.11583063,119000.0,118990.0,0.3406405]
[1753704009933,0.10970646,119000.0,118990.0,0.3406405]
[1753704010133,0.17999646,119000.0,118990.0,0.3406405]
[1753704010334,0.2907,119000.0,118990.0,0.3406405]
[1753704010729,0.06055646,119010.0,118990.0,1.89040299]
[1753704010936,0.35125646,119010.0,119000.0,0.8353001]
[1753704011135,0.60350251,119010.0,119000.0,0.8353001]
[1753704011330,0.60350251,119010.0,119000.0,0.1680601]
[1753704011531,0.963278,119010.0,119000.0,0.8353001]
[1753704012139,0.963278,119010.0,119000.0,0.1680601]
[1753704012341,1.21552405,119010.0,119000.0,0.1680601]
[1753704012540,1.21552405,119010.0,119000.0,0.8353001]
[1753704012930,1.27604051,119010.0,119000.0,0.66724]
[1753704013136,1.3421359,119010.0,119000.0,0.66724]
[1753704013336,1.3431359,119010.0,119000.0,0.66724]
[1753704013739,1.3451359,119010.0,119000.0,0.66724]
[1753704013932,0.52788129,119010.0,119000.0,0.8353001]
[1753704014132,1.03237339,119010.0,119000.0,0.66724]
[1753704014343,1.03237339,119010.0,119000.0,0.8353001]
[1753704014637,1.03237339,119010.0,119000.0,0.66724]
[1753704015139,1.03237339,119010.0,119000.0,0.8353001]
[1753704015636,1.03237339,119010.0,119000.0,0.1680601]
[1753704016044,1.03237339,119010.0,119000.0,0.8353001]
[1753704016536,1.03237339,119010.0,118990.0,1.16324]
[1753704016537,0.24954,119000.0,118990.0,1.16324]
[1753704016741,0.4587883,118980.0,118970.0,0.03021]
[1753704016939,1.21552645,118980.0,118970.0,0.22297384]
[1753704017142,1.21552645,118980.0,118970.0,0.8656724]
[1753704017341,1.21552645,118980.0,118970.0,0.9291424]
[1753704017541,1.22373986,118980.0,118970.0,0.9291424]
[1753704018346,1.21952645,118980.0,118970.0,0.9291424]
[1753704018549,1.21952645,118980.0,118970.0,0.2617424]
[1753704018740,0.79902995,118980.0,118970.0,0.9291424]
[1753704018940,0.79902995,118980.0,118970.0,0.2315324]
[1753704019247,0.79902995,118980.0,118970.0,0.8988924]
[1753704020347,0.80202995,118980.0,118970.0,0.8988924]
[1753704020537,0.80202995,118980.0,118970.0,0.9291424]
[1753704020943,0.81050029,118980.0,118970.0,0.9291424]
[1753704022847,0.81050029,118980.0,118970.0,0.9290224]
[1753704023351,0.81050029,118980.0,118970.0,0.2617424]
[1753704023649,0.81050029,118980.0,118970.0,0.9290224]
[1753704023854,0.81050029,118980.0,118970.0,0.2617424]
[1753704024050,0.81050029,118980.0,118970.0,0.9290624]
[1753704024248,0.81050029,118980.0,118970.0,0.1681024]
[1753704024454,0.81050029,118980.0,118970.0,0.8354224]
[1753704024754,0.87101675,118980.0,118970.0,0.8354224]
[1753704028057,0.84951675,118980.0,118970.0,0.8354224]
[1753704029152,0.84951675,118980.0,118970.0,0.9073524]
[1753704030556,0.84951675,118980.0,118970.0,0.9388024]
[1753704031158,0.84951675,118980.0,118970.0,1.0057724]
[1753704032262,0.78900029,118980.0,118970.0,1.0057724]
[1753704032757,0.78900029,118980.0,118970.0,0.9910924]
[1753704032958,0.78900029,118980.0,118970.0,0.82299]
[1753704033158,0.78900029,118980.0,118970.0,0.73925]
[1753704033360,0.4764124,118970.0,118960.0,0.403972]
[1753704033561,1.1488957,118970.0,118960.0,1.071212]
[1753704033953,0.81265405,118970.0,118960.0,1.071212]
[1753704034765,0.82065405,118970.0,118960.0,1.071212]
[1753704035260,0.82465405,118970.0,118960.0,1.071212]
[1753704035762,0.82065405,118970.0,118960.0,1.071212]
[1753704036156,0.82065405,118970.0,118960.0,0.877372]
[1753704036362,0.82065405,118970.0,118960.0,0.949302]
[1753704036564,0.82065405,118970.0,118960.0,0.980752]
[1753704036765,0.81665405,118970.0,118960.0,1.046942]
[1753704036961,0.81965405,118970.0,118960.0,1.046942]
[1753704040968,0.81965405,118970.0,118960.0,1.0049142]
[1753704041172,0.4764266,118960.0,118950.0,0.4916524]
[1753704041366,1.1489099,118960.0,118950.0,0.4496201]
[1753704041664,1.1489099,118960.0,118950.0,1.0148307]
[1753704041871,1.1489099,118960.0,118950.0,0.8606]
[1753704042273,1.1489099,118960.0,118950.0,1.0287307]
[1753704042775,1.1489099,118960.0,118950.0,0.9206707]
[1753704042974,1.20942636,118960.0,118950.0,0.9926007]
[1753704043365,1.22142636,118960.0,118950.0,0.9926007]
[1753704044469,1.21342636,118960.0,118950.0,1.0065007]
[1753704044670,1.21742636,118960.0,118950.0,1.0065007]
[1753704044873,1.21642636,118960.0,118950.0,1.0065007]
[1753704045676,1.1559099,118960.0,118950.0,0.3238007]
[1753704045873,1.1559099,118960.0,118950.0,0.9924807]
[1753704046069,1.1559099,118960.0,118950.0,0.9401907]
[1753704046464,1.1559099,118960.0,118950.0,0.1995807]
[1753704046670,1.1559099,118960.0,118950.0,0.70021]
[1753704047368,0.4149507,118950.0,118940.0,0.4860372]
[1753704047577,0.81268235,118950.0,118940.0,1.1548372]
[1753704049677,0.89136233,118950.0,118940.0,1.1548372]
[1753704050279,0.89136233,118950.0,118940.0,1.0287332]
[1753704050475,0.89136233,118950.0,118940.0,0.3599332]
[1753704050677,0.5184933,118940.0,118920.0,0.0840836]
[1753704050974,0.6025717,118940.0,118930.0,0.199609]
[1753704051183,0.6025717,118940.0,118930.0,0.359959]
[1753704051675,0.6025717,118940.0,118930.0,0.407629]
[1753704052182,0.89677415,118940.0,118930.0,0.407629]
[1753704052784,0.90077415,118940.0,118930.0,0.407629]
[1753704053178,0.90777415,118940.0,118930.0,0.407629]
[1753704057581,0.90227415,118940.0,118930.0,0.407629]
[1753704057787,0.90227415,118940.0,118930.0,0.359959]
[1753704061289,0.2257948,118940.0,118930.0,0.406739]
[1753704061590,0.56203645,118940.0,118930.0,0.406739]
[1753704061792,0.34724165,118940.0,118930.0,0.406739]
[1753704062091,0.011,118940.0,118930.0,0.406739]
[1753704063392,0.34724165,118940.0,118930.0,0.406739]
[1753704064292,0.34724165,118940.0,118930.0,0.43088472]
[1753704064887,0.39389165,118940.0,118930.0,0.406739]
[1753704065292,0.39389165,118940.0,118930.0,0.43088846]
[1753704065493,0.011,118940.0,118930.0,0.43088846]
[1753704065680,0.011,118940.0,118930.0,1.18529011]
[1753704065887,0.33624165,118960.0,118950.0,0.2686706]
[1753704066082,0.84505005,118970.0,118960.0,0.2686565]
[1753704066286,0.84505005,118970.0,118960.0,0.37371549]
[1753704066686,0.50288165,118970.0,118960.0,0.37371549]
[1753704066891,0.63491165,118970.0,118960.0,0.37371549]
[1753704067192,0.80301405,118970.0,118960.0,0.37371549]
[1753704067589,0.80301405,118970.0,118960.0,0.37471549]
[1753704070796,0.63491165,118970.0,118960.0,0.37471549]
[1753704071895,0.80301405,118970.0,118960.0,0.37471549]
[1753704074899,0.80301405,118970.0,118960.0,0.33571549]
[1753704078401,1.1392557,118970.0,118960.0,0.81935549]
[1753704078601,0.80301405,118970.0,118960.0,0.81935549]
[1753704080303,1.1392557,118970.0,118960.0,0.14891549]
[1753704080603,1.1392557,118970.0,118960.0,0.8394766]
[1753704081200,1.1392557,118970.0,118960.0,0.1691166]
[1753704083408,1.1392557,118970.0,118960.0,0.001]
[1753704084501,1.1392557,118970.0,118960.0,0.1691165]
[1753704087500,1.19977216,118970.0,118960.0,0.1691165]
[1753704088407,0.86353051,118970.0,118960.0,0.1691165]
[1753704088604,0.86353051,118970.0,118960.0,0.3313665]
[1753704088804,0.86353051,118970.0,118960.0,0.3484765]
[1753704093612,0.86353051,118970.0,118960.0,0.3206765]
[1753704094514,0.80301405,118970.0,118960.0,0.3206765]
[1753704095314,0.80301405,118970.0,118960.0,0.30047601]
[1753704096918,0.80301405,118970.0,118960.0,0.22279601]
[1753704097316,1.1392557,118970.0,118960.0,0.22279601]
[1753704097523,0.3374866,118960.0,118950.0,1.0070717]
[1753704097714,0.3374866,118960.0,118950.0,0.9963817]
[1753704097715,1.20628894,118960.0,118950.0,0.9963817]
[1753704098723,1.20828894,118960.0,118950.0,0.9963817]
[1753704099216,1.20928894,118960.0,118950.0,0.2521817]
[1753704099418,1.20928894,118960.0,118950.0,0.8821905]
[1753704100219,1.20928894,118960.0,118950.0,0.9560705]
[1753704103923,1.20928894,118960.0,118950.0,1.0026905]
[1753704104128,1.20928894,118960.0,118950.0,1.0444405]
[1753704105031,1.20928894,118960.0,118950.0,1.0337505]
[1753704106736,1.20928894,118960.0,118950.0,1.01354866]
[1753704108240,1.1487599,118960.0,118950.0,1.01354866]
[1753704109344,1.1487599,118960.0,118950.0,1.02423866]
[1753704110346,1.1487599,118960.0,118950.0,1.06323866]
[1753704110547,1.20930147,118960.0,118950.0,1.06323866]
[1753704114045,0.003,118960.0,118950.0,1.41307031]
[1753704114746,0.003,118960.0,118950.0,1.07682866]
[1753704115348,0.003,118960.0,118950.0,1.10046956]
[1753704116444,0.35218574,118960.0,118950.0,1.10046956]
[1753704117254,0.01594409,118960.0,118950.0,1.07682866]
[1753704118150,0.01594409,118960.0,118950.0,1.10013571]
[1753704118753,0.01394409,118960.0,118950.0,1.10013571]
[1753704118953,0.01494409,118960.0,118950.0,1.10013571]
[1753704119454,0.01494409,118960.0,118950.0,1.07682866]
[1753704119653,0.01494409,118960.0,118950.0,1.10012629]
[1753704120355,0.33824165,118960.0,118950.0,1.10012629]
[1753704121245,0.39843333,118960.0,118950.0,1.10012629]
[1753704121441,0.40043333,118960.0,118950.0,1.10012629]
[1753704121850,0.68960993,118960.0,118950.0,0.42868629]
[1753704122054,0.82020993,118960.0,118950.0,1.07694866]
[1753704122250,0.65209333,118960.0,118950.0,1.07694866]
[1753704123155,0.65209333,118960.0,118950.0,0.40538866]
[1753704123353,0.56854983,118960.0,118950.0,0.30756866]
[1753704123553,0.65209333,118960.0,118950.0,1.07212866]
[1753704124257,0.7126349,118960.0,118950.0,1.07212866]
[1753704124657,0.5321849,118960.0,118950.0,1.07212866]
[1753704124858,0.4129149,118960.0,118950.0,1.07212866]
[1753704125059,0.07667325,118960.0,118950.0,1.07212866]
[1753704125857,0.01613168,118960.0,118950.0,1.07212866]
[1753704128255,0.35237333,118960.0,118950.0,1.07212866]
[1753704129662,0.40043333,118960.0,118950.0,1.07212866]
[1753704133769,0.52149333,118960.0,118950.0,1.07212866]